bitfinex/quotes_BTCUSD_20240906
["timestamp","ask_amount","ask_price","bid_price","bid_amount"]
[1725656078854,0.1933,52903.0,52868.0,0.4171]
[1725656078855,0.55430836,52902.0,52868.0,0.4171]
[1725656079076,0.189143,52870.0,52869.0,0.00378146]
[1725656079312,0.37813,52892.0,52869.0,0.023]
[1725656079537,0.378249,52876.0,52870.0,0.64163342]
[1725656079794,0.37813,52892.0,52871.0,0.02678176]
[1725656080080,0.55430836,52888.0,52871.0,0.02678176]
[1725656080321,0.55430836,52902.0,52871.0,0.02678176]
[1725656080576,0.55430836,52888.0,52872.0,0.41638063]
[1725656080791,0.55430836,52902.0,52872.0,0.4126]
[1725656080792,0.189132,52873.0,52872.0,0.4126]
[1725656080999,0.189132,52873.0,52872.0,0.4356]
[1725656082397,0.189132,52873.0,52867.0,0.0012342]
[1725656082398,0.18915,52868.0,52867.0,2e-07]
[1725656082605,0.28915,52868.0,52867.0,2e-07]
[1725656083079,0.28915,52868.0,52851.0,0.4126]
[1725656083080,0.189207,52852.0,52851.0,0.4126]
[1725656083296,0.289207,52852.0,52851.0,0.4126]
[1725656083515,0.189239,52843.0,52842.0,0.4152]
[1725656083734,0.406868,52884.0,52842.0,0.4152]
[1725656083962,0.55430836,52866.0,52845.0,0.4152]
[1725656084170,0.1876,52886.0,52846.0,0.00378294]
[1725656084390,0.55430836,52872.0,52847.0,0.05993829]
[1725656084603,0.1876,52886.0,52848.0,0.4152]
[1725656084826,0.3766,52892.0,52848.0,0.4152]
[1725656084827,0.02741041,52885.0,52853.0,0.189204]
[1725656085039,0.405168,52892.0,52851.0,0.1804]
[1725656085040,0.3766,52892.0,52854.0,0.44198239]
[1725656085297,0.55430836,52870.0,52854.0,0.4382]
[1725656085511,0.028568,52900.0,52825.0,0.006]
[1725656085512,1.51461514,52869.0,52842.0,0.1804]
[1725656085733,0.1867,52871.0,52834.0,0.5821]
[1725656085734,1.89121514,52868.0,52834.0,0.5821]
[1725656085946,0.028568,52865.0,52835.0,0.55430836]
[1725656086162,0.028568,52863.0,52834.0,0.3944]
[1725656086395,0.3766,52868.0,52834.0,0.3944]
[1725656086396,1.54318314,52862.0,52834.0,0.3944]
[1725656086649,0.3766,52868.0,52834.0,0.3944]
[1725656086650,1.291568,52861.0,52834.0,0.3944]
[1725656086858,1.36339436,52860.0,52834.0,0.3944]
[1725656087073,0.12739436,52859.0,52837.0,0.00378485]
[1725656087286,0.02739436,52858.0,52837.0,0.00378476]
[1725656087503,0.02739436,52858.0,52836.0,0.00541237]
[1725656088183,2.04152036,52857.0,52836.0,0.001628]
[1725656088402,1.69540636,52856.0,52836.0,0.001628]
[1725656088614,1.61460636,52855.0,52836.0,0.001628]
[1725656088850,0.82239436,52854.0,52836.0,0.001628]
[1725656089051,0.3766,52868.0,52836.0,0.001628]
[1725656089052,0.02739436,52853.0,52837.0,0.3923]
[1725656089397,0.3766,52868.0,52837.0,0.3923]
[1725656089398,0.02739686,52852.0,52837.0,0.3923]
[1725656089479,0.02739686,52852.0,52838.0,0.00378432]
[1725656089696,0.02739686,52852.0,52837.0,0.3923]
[1725656089697,0.55430836,52858.0,52837.0,0.3923]
[1725656089930,1.51461178,52857.0,52837.0,0.3923]
[1725656090140,0.02739978,52857.0,52837.0,0.3923]
[1725656090371,0.02739978,52856.0,52837.0,0.3923]
[1725656090606,0.3766,52868.0,52838.0,0.001628]
[1725656090607,0.02739978,52855.0,52838.0,0.001628]
[1725656090832,0.3766,52868.0,52838.0,0.001628]
[1725656090833,0.000814,52870.0,52846.0,0.5744]
[1725656091062,0.1924,52893.0,52846.0,0.5744]
[1725656091063,0.02855507,52893.0,52863.0,0.3868]
[1725656091289,0.43171988,52892.0,52863.0,0.3868]
[1725656091503,0.02855507,52890.0,52863.0,0.3868]
[1725656091721,0.02855507,52888.0,52863.0,0.3868]
[1725656091954,0.02741988,52887.0,52864.0,0.02678225]
[1725656092177,0.3971,52901.0,52865.0,0.375]
[1725656092391,0.02742656,52900.0,52867.0,0.375]
[1725656092619,0.55430836,52913.0,52866.0,0.02678146]
[1725656092620,0.02742656,52899.0,52869.0,0.375]
[1725656092859,0.02742656,52899.0,52868.0,0.02678139]
[1725656092860,0.02742656,52899.0,52872.0,0.5713]
[1725656093069,0.55430836,52913.0,52874.0,0.37480496]
[1725656093347,0.55430836,52898.0,52875.0,0.023]
[1725656093560,0.02743455,52897.0,52877.0,0.55430836]
[1725656093778,0.02743455,52896.0,52878.0,0.023]
[1725656093987,0.02743455,52895.0,52878.0,0.023]
[1725656094193,0.02743455,52894.0,52875.0,0.57730836]
[1725656094403,0.55430836,52912.0,52875.0,0.57730836]
[1725656094404,0.02743455,52893.0,52876.0,0.00378147]
[1725656094633,0.55430836,52911.0,52877.0,0.2212]
[1725656094845,0.55430836,52897.0,52878.0,0.02479815]
[1725656095062,0.62487236,52910.0,52877.0,0.2212]
[1725656095063,0.05543084,52910.0,52879.0,0.023]
[1725656095311,0.05543084,52910.0,52877.0,0.2212]
[1725656095312,1.69043939,52909.0,52877.0,0.2212]
[1725656095542,4.527,52908.0,52878.0,0.55430836]
[1725656095779,2.61043971,52907.0,52879.0,0.023]
[1725656096107,0.00082,52923.0,52879.0,0.023]
[1725656096108,1.62286874,52906.0,52880.0,0.07985084]
[1725656096376,0.02743971,52905.0,52881.0,0.44088134]
[1725656096863,0.10082,52923.0,52881.0,0.4371]
[1725656096864,1.34874807,52904.0,52881.0,0.4371]
[1725656097113,5.00243971,52903.0,52881.0,0.4366]
[1725656097373,0.075845,52918.0,52881.0,0.4366]
[1725656097374,0.1812,52912.0,52882.0,0.5580903]
[1725656097631,0.71043662,52911.0,52883.0,0.65525848]
[1725656097907,0.392,52910.0,52884.0,0.55430836]
[1725656098145,0.3781,52916.0,52884.0,0.55808929]
[1725656098400,0.974,52915.0,52884.0,0.55808929]
[1725656098636,0.1812,52920.0,52885.0,0.023]
[1725656098637,3.716,52914.0,52885.0,0.023]
[1725656098878,0.1812,52920.0,52893.0,0.55430836]
[1725656099119,0.07666,52923.0,52894.0,0.00378041]
[1725656099361,0.277,52921.0,52894.0,0.00378041]
[1725656099601,0.277,52921.0,52887.0,0.1978]
[1725656099602,0.917,52920.0,52887.0,0.1978]
[1725656099836,0.55512836,52923.0,52887.0,0.1978]
[1725656099837,1.951,52921.0,52887.0,0.1978]
[1725656100079,5.05,52921.0,52888.0,0.393]
[1725656100369,0.1834,52920.0,52888.0,0.393]
[1725656100650,5.15,52919.0,52892.0,0.55430836]
[1725656100889,5.15,52919.0,52878.0,0.55430836]
[1725656100890,0.4131,52913.0,52893.0,0.55430836]
[1725656101182,0.4131,52913.0,52878.0,0.55430836]
[1725656101183,0.4131,52913.0,52891.0,0.1927]
[1725656101184,0.428,52912.0,52891.0,0.1927]
[1725656101423,0.000814,52922.0,52894.0,0.3956]
[1725656101666,0.913,52921.0,52894.0,0.3956]
[1725656101906,0.000814,52922.0,52895.0,0.00378045]
[1725656101907,0.35,52920.0,52895.0,0.00378045]
[1725656102139,5.05,52919.0,52894.0,0.3956]
[1725656102383,2.482,52921.0,52895.0,0.023]
[1725656102620,0.000814,52922.0,52896.0,0.09921784]
[1725656102856,0.000814,52922.0,52897.0,0.4144]
[1725656102857,2.284,52921.0,52897.0,0.4144]
[1725656103092,0.000814,52912.0,52897.0,0.4144]
[1725656103330,5.05,52911.0,52897.0,0.3914]
[1725656103599,0.000814,52912.0,52898.0,0.55430836]
[1725656103830,0.000814,52912.0,52885.0,0.378175]
[1725656103831,0.000814,52912.0,52900.0,1.14240836]
[1725656104060,0.000814,52912.0,52878.0,0.55430836]
[1725656104061,0.90230836,52911.0,52895.0,0.4015]
[1725656104287,0.000814,52912.0,52895.0,0.4015]
[1725656104288,0.00377983,52910.0,52895.0,0.4015]
[1725656104760,0.000814,52912.0,52896.0,0.04393085]
[1725656105033,0.000814,52912.0,52898.0,0.3993]
[1725656105257,0.000814,52912.0,52896.0,0.04393085]
[1725656105258,0.000814,52912.0,52900.0,0.3993]
[1725656105485,0.000814,52912.0,52896.0,0.04015]
[1725656105486,0.000814,52922.0,52901.0,0.20317896]
[1725656105700,0.000814,52922.0,52898.0,0.18904]
[1725656105701,0.02745961,52921.0,52905.0,0.3993]
[1725656105929,0.02745961,52921.0,52904.0,0.1994]
[1725656105930,0.000814,52922.0,52909.0,0.5987]
[1725656106160,0.55430836,52939.0,52909.0,0.5987]
[1725656106161,0.55430836,52939.0,52924.0,0.3993]
[1725656106381,0.55430836,52939.0,52926.0,0.3993]
[1725656106609,0.55430836,52949.0,52929.0,0.1942]
[1725656106830,0.55430836,52949.0,52927.0,0.00377726]
[1725656106831,0.25550839,52966.0,52938.0,0.1942]
[1725656107058,0.25550839,52966.0,52930.0,0.38517606]
[1725656107059,0.25550839,52966.0,52941.0,0.3814]
[1725656107294,0.25550839,52966.0,52942.0,0.023]
[1725656107295,0.78377983,52965.0,52942.0,0.023]
[1725656107550,0.00377983,52965.0,52942.0,0.023]
[1725656107779,0.1865,52963.0,52942.0,0.023]
[1725656108005,0.15977983,52962.0,52942.0,0.57730836]
[1725656108231,0.03124912,52962.0,52944.0,0.55430836]
[1725656108458,0.03124912,52962.0,52941.0,0.3814]
[1725656108459,0.044637,52961.0,52945.0,0.02677672]
[1725656108675,0.044637,52960.0,52946.0,0.4038]
[1725656108933,0.01716771,52960.0,52947.0,0.023]
[1725656109153,0.01716771,52959.0,52947.0,0.0267764]
[1725656109374,0.00377983,52970.0,52947.0,0.0267764]
[1725656109375,0.01716771,52958.0,52947.0,0.023]
[1725656109607,0.04463615,52957.0,52946.0,0.4038]
[1725656109827,0.04463615,52957.0,52938.0,0.4037]
[1725656109828,0.23861598,52956.0,52938.0,0.4037]
[1725656110118,0.23861598,52956.0,52929.0,0.4037]
[1725656110119,5.17865775,52955.0,52929.0,0.4037]
[1725656110319,5.05577983,52954.0,52931.0,0.55430836]
[1725656110537,5.19463615,52953.0,52931.0,0.55430836]
[1725656110774,5.09841598,52952.0,52931.0,0.55430836]
[1725656110997,0.36863615,52951.0,52931.0,0.55430836]
[1725656111215,0.23041598,52950.0,52929.0,0.4037]
[1725656111455,0.1,52949.0,52930.0,0.00377778]
[1725656111681,0.1,52949.0,52929.0,0.4037]
[1725656111682,3.43424827,52948.0,52929.0,0.4037]
[1725656111937,3.43424827,52948.0,52906.0,0.0980527]
[1725656111938,0.4027,52946.0,52916.0,0.5663]
[1725656112173,0.4027,52946.0,52908.0,0.6067]
[1725656112174,5.09841598,52945.0,52908.0,0.6067]
[1725656112445,5.48231598,52944.0,52908.0,0.6067]
[1725656112705,5.09463615,52943.0,52908.0,0.6067]
[1725656112940,5.19841598,52942.0,52908.0,0.6067]
[1725656113165,5.19841598,52942.0,52875.0,0.002]
[1725656113166,0.3839,52935.0,52899.0,0.96740836]
[1725656113387,5.09841598,52934.0,52899.0,0.96740836]
[1725656113608,0.55430836,52932.0,52899.0,0.96740836]
[1725656113836,3.18251598,52931.0,52900.0,0.00378061]
[1725656114094,3.18251598,52931.0,52899.0,0.96740836]
[1725656114095,2.36444509,52930.0,52899.0,0.96740836]
[1725656114351,2.14077983,52929.0,52900.0,0.55430836]
[1725656114583,5.09459827,52928.0,52901.0,0.55430836]
[1725656114809,1.04559827,52927.0,52902.0,0.00378063]
[1725656115042,0.14459827,52926.0,52902.0,0.00378063]
[1725656115293,0.05390867,52952.0,52902.0,0.00378063]
[1725656115295,0.01715318,52925.0,52903.0,0.1906]
[1725656115517,0.55430836,52934.0,52904.0,0.50455092]
[1725656115737,0.0209315,52933.0,52904.0,0.50455092]
[1725656115962,0.01715167,52932.0,52905.0,0.02677913]
[1725656116189,0.3907,52944.0,52906.0,0.3817]
[1725656116190,0.01715167,52931.0,52906.0,0.3817]
[1725656116408,0.002,52966.0,52905.0,0.02677913]
[1725656116409,0.6132,52954.0,52916.0,0.1816]
[1725656116656,0.55430836,52937.0,52917.0,0.41567801]
[1725656116889,0.55430836,52951.0,52917.0,0.96985007]
[1725656117120,0.6132,52954.0,52917.0,0.96985007]
[1725656117121,0.000813,52934.0,52918.0,0.188969]
[1725656117341,0.000813,52934.0,52919.0,0.02677765]
[1725656117568,0.000813,52934.0,52920.0,0.0785686]
[1725656117791,0.000813,52934.0,52921.0,0.023]
[1725656118004,0.000813,52934.0,52916.0,0.1816]
[1725656118229,0.000813,52934.0,52872.0,0.01]
[1725656118230,2.21178725,52933.0,52917.0,0.55430836]
[1725656118456,2.21178725,52933.0,52918.0,0.55430836]
[1725656118457,0.00377983,52932.0,52918.0,0.55430836]
[1725656118688,0.00377983,52932.0,52908.0,0.19733212]
[1725656118689,0.14836708,52932.0,52908.0,0.19733212]
[1725656118915,0.14836708,52932.0,52909.0,0.02351235]
[1725656118916,0.04458725,52931.0,52909.0,0.02351235]
[1725656119192,0.04836708,52930.0,52908.0,0.19733212]
[1725656119401,0.04458725,52929.0,52908.0,0.19733212]
[1725656119641,0.04458725,52929.0,52892.0,0.55430836]
[1725656119642,0.5779,52927.0,52892.0,0.55430836]
[1725656119893,0.60267544,52928.0,52886.0,0.4036]
[1725656119894,0.3943,52925.0,52886.0,0.4036]
[1725656120114,0.3943,52925.0,52893.0,0.55430836]
[1725656120115,5.33737983,52924.0,52893.0,0.55430836]
[1725656120339,3.59312844,52923.0,52893.0,0.55430836]
[1725656120559,3.25236708,52922.0,52893.0,0.55430836]
[1725656120787,1.29058725,52921.0,52893.0,0.55430836]
[1725656121000,1.88995941,52920.0,52894.0,0.05543084]
[1725656121224,1.31358725,52919.0,52895.0,0.4161]
[1725656121457,0.10377983,52920.0,52895.0,0.60028059]
[1725656121458,0.14836708,52918.0,52895.0,0.60028059]
[1725656121721,0.14836708,52918.0,52895.0,0.5965]
[1725656121722,0.04458725,52917.0,52895.0,0.5965]
[1725656121969,0.03795,52953.0,52894.0,0.05543084]
[1725656121970,0.04458725,52916.0,52897.0,0.3805]
[1725656122216,0.10754573,52963.0,52894.0,0.05543084]
[1725656122217,0.04458725,52915.0,52901.0,0.4152]
[1725656122443,0.55430836,52926.0,52902.0,0.2051]
[1725656122444,0.55430836,52911.0,52902.0,0.2051]
[1725656122663,0.048345,52910.0,52901.0,0.4152]
[1725656122883,0.04831904,52909.0,52901.0,0.4152]
[1725656123114,0.04831904,52909.0,52877.0,0.55430836]
[1725656123115,0.04453921,52908.0,52892.0,0.4152]
[1725656123336,0.1981,52916.0,52892.0,0.4152]
[1725656123337,0.04831904,52907.0,52892.0,0.4152]
[1725656123558,0.04831904,52906.0,52892.0,0.4152]
[1725656123800,0.04831904,52906.0,52888.0,0.1821]
[1725656123801,0.04831904,52905.0,52888.0,0.1821]
[1725656124029,0.04453921,52904.0,52889.0,0.00378112]
[1725656124296,0.04453921,52904.0,52891.0,0.55430836]
[1725656124516,0.1,52913.0,52888.0,0.1821]
[1725656124517,0.04452968,52903.0,52892.0,0.41067999]
[1725656124737,0.04452968,52903.0,52893.0,0.041068]
[1725656124952,0.00377983,52912.0,52893.0,0.041068]
[1725656124953,0.04452968,52902.0,52893.0,0.041068]
[1725656125171,0.04452968,52901.0,52892.0,0.4069]
[1725656125393,0.04452968,52900.0,52893.0,0.023]
[1725656125622,0.04452643,52899.0,52892.0,0.4069]
[1725656125839,0.4056,52906.0,52892.0,0.4069]
[1725656126066,0.4056,52906.0,52888.0,0.1821]
[1725656126067,0.01712405,52898.0,52888.0,0.1821]
[1725656126300,0.04452253,52905.0,52890.0,0.55430836]
[1725656126515,0.1,52924.0,52888.0,0.1821]
[1725656126516,0.04452253,52904.0,52888.0,0.1821]
[1725656126768,0.04452253,52903.0,52892.0,0.4069]
[1725656127003,0.4056,52924.0,52892.0,0.4069]
[1725656127004,0.04452253,52902.0,52893.0,0.00378005]
[1725656127226,0.01712405,52901.0,52894.0,0.023]
[1725656127449,0.000813,52934.0,52896.0,0.3803]
[1725656127710,0.000813,52934.0,52900.0,0.189034]
[1725656127711,0.5988514,52933.0,52900.0,0.189034]
[1725656127931,0.5988514,52933.0,52901.0,0.19597871]
[1725656127932,0.04454304,52932.0,52901.0,0.19597871]
[1725656128180,0.04454304,52931.0,52903.0,0.1922]
[1725656128450,0.01713194,52930.0,52904.0,0.00377848]
[1725656128667,0.000813,52934.0,52904.0,0.00377848]
[1725656128668,0.18901,52907.0,52906.0,0.389]
[1725656128884,0.18901,52907.0,52906.0,0.44747785]
[1725656129380,0.000813,52934.0,52906.0,0.44747785]
[1725656129612,0.000813,52934.0,52908.0,0.389]
[1725656129613,0.55430836,52932.0,52908.0,0.389]
[1725656129842,0.000813,52912.0,52909.0,0.41577836]
[1725656130093,0.000813,52934.0,52909.0,0.39277836]
[1725656130367,0.01713934,52933.0,52911.0,0.389]
[1725656130593,0.01713934,52933.0,52910.0,0.06812562]
[1725656130594,0.000813,52934.0,52925.0,0.192]
[1725656130823,0.000813,52934.0,52926.0,0.39277716]
[1725656130824,0.01714213,52933.0,52926.0,0.39277716]
[1725656131049,0.017168,52973.0,52926.0,0.39277716]
[1725656131050,0.1854,52968.0,52927.0,0.192]
[1725656131271,0.55430836,52949.0,52930.0,0.389]
[1725656131528,0.55430836,52963.0,52931.0,0.06233733]
[1725656131529,0.01714453,52948.0,52931.0,0.06233733]
[1725656131752,0.01714052,52948.0,52931.0,0.06233733]
[1725656132007,0.01714052,52947.0,52931.0,0.06233733]
[1725656132232,0.04456343,52946.0,52932.0,0.389]
[1725656132455,0.04456343,52946.0,52931.0,0.06233733]
[1725656132456,0.01714052,52946.0,52933.0,0.3927766]
[1725656132676,0.18622,52975.0,52935.0,0.389]
[1725656132902,0.55430836,52954.0,52935.0,0.389]
[1725656133117,0.55430836,52968.0,52936.0,0.55808504]
[1725656133118,0.04456813,52953.0,52936.0,0.55808504]
[1725656133340,0.04456813,52952.0,52937.0,0.023]
[1725656133563,0.04456813,52952.0,52927.0,0.00082657]
[1725656133564,0.04456813,52951.0,52939.0,0.6024]
[1725656133786,8.205e-05,52957.0,52941.0,0.407]
[1725656134012,0.18622,52975.0,52942.0,0.00377638]
[1725656134013,0.01714145,52956.0,52942.0,0.00377638]
[1725656134232,0.01714145,52955.0,52943.0,0.023]
[1725656134527,0.18622,52975.0,52943.0,0.023]
[1725656134528,0.01714145,52954.0,52943.0,0.02677626]
[1725656134746,0.01714145,52953.0,52944.0,0.04715423]
[1725656134962,0.18622,52975.0,52945.0,0.023]
[1725656135191,0.01714058,52952.0,52945.0,0.023]
[1725656135438,0.96,52974.0,52945.0,0.023]
[1725656135439,0.01714058,52951.0,52947.0,0.4126]
[1725656135669,0.18622,52975.0,52945.0,0.023]
[1725656135670,8.205e-05,52969.0,52949.0,0.4126]
[1725656135885,8.205e-05,52969.0,52948.0,0.45781378]
[1725656135886,0.001,52954.0,52953.0,0.4144]
[1725656136326,8.205e-05,52969.0,52953.0,0.4144]
[1725656136545,0.01714654,52968.0,52954.0,0.06410023]
[1725656136772,0.00082,52975.0,52953.0,0.4144]
[1725656136773,0.01714654,52967.0,52953.0,0.4144]
[1725656136996,0.00082,52975.0,52954.0,0.023]
[1725656136997,0.01714654,52966.0,52954.0,0.023]
[1725656137232,0.00082,52975.0,52953.0,0.4144]
[1725656137233,0.01714654,52965.0,52953.0,0.4144]
[1725656137512,0.01714654,52964.0,52947.0,0.014]
[1725656137778,0.01714654,52963.0,52947.0,0.014]
[1725656138025,0.1893,52965.0,52944.0,0.4144]
[1725656138026,0.1,52964.0,52948.0,0.55808567]
[1725656138290,0.01713939,52962.0,52948.0,0.00377731]
[1725656138501,0.00082,52975.0,52953.0,0.002]
[1725656138502,0.01713939,52963.0,52953.0,0.002]
[1725656138720,0.001,52969.0,52954.0,0.79131655]
[1725656138931,0.001,52969.0,52955.0,0.188838]
[1725656138932,0.01714675,52968.0,52955.0,0.188838]
[1725656139168,0.01714675,52967.0,52956.0,0.10610647]
[1725656139387,0.001,52969.0,52956.0,0.10610647]
[1725656139646,0.01714731,52968.0,52958.0,0.188828]
[1725656139860,0.00082,52975.0,52959.0,0.0267751]
[1725656140090,0.01714761,52974.0,52959.0,0.0267751]
[1725656140309,0.00082,52975.0,52959.0,0.0267751]
[1725656140310,0.01714761,52973.0,52960.0,0.01061064]
[1725656140527,0.00082,52975.0,52959.0,0.023]
[1725656140528,0.01714761,52972.0,52959.0,0.023]
[1725656140748,0.01714761,52971.0,52961.0,0.00377533]
[1725656140992,0.01714761,52970.0,52962.0,0.023]
[1725656141211,0.01714761,52969.0,52962.0,0.023]
[1725656141428,0.0171492,52968.0,52954.0,0.5987]
[1725656141655,0.04458458,52967.0,52954.0,0.4083]
[1725656141901,0.04458458,52966.0,52954.0,0.4083]
[1725656142155,0.3938,52974.0,52954.0,0.4083]
[1725656142156,0.04458458,52965.0,52959.0,0.002]
[1725656142375,0.1,52973.0,52959.0,0.002]
[1725656142376,0.000813,52962.0,52959.0,0.002]
[1725656142600,0.04458458,52961.0,52944.0,0.00377657]
[1725656142828,0.000813,52962.0,52931.0,0.1962]
[1725656142829,0.44788458,52960.0,52931.0,0.1962]
[1725656143054,0.44788458,52960.0,52954.0,0.001]
[1725656143055,0.14458458,52959.0,52954.0,0.001]
[1725656143274,0.16359244,52958.0,52954.0,0.001]
[1725656143491,0.16359244,52958.0,52926.0,0.001626]
[1725656143492,5.20829457,52957.0,52926.0,0.001626]
[1725656143706,5.27758458,52956.0,52944.0,0.002]
[1725656143926,1.543,52955.0,52944.0,0.002]
[1725656144148,0.131,52954.0,52944.0,0.002]
[1725656144357,0.14454071,52953.0,52944.0,0.002]
[1725656144575,0.14454071,52952.0,52944.0,0.002]
[1725656144817,0.04454071,52951.0,52944.0,0.3804]
[1725656145030,0.04454071,52951.0,52927.0,0.00105402]
[1725656145031,0.04454071,52950.0,52935.0,0.3784]
[1725656145251,0.04454071,52949.0,52935.0,0.3784]
[1725656145479,0.1,52955.0,52935.0,0.3784]
[1725656145480,0.04454071,52948.0,52935.0,0.3784]
[1725656145711,0.05824844,52947.0,52936.0,0.023]
[1725656145940,0.04454071,52946.0,52937.0,0.55430836]
[1725656146205,0.05404946,52972.0,52937.0,0.55430836]
[1725656146206,0.01713104,52945.0,52944.0,0.002]
[1725656146419,0.1991,52963.0,52945.0,0.3902]
[1725656146647,0.0072179,52957.0,52946.0,0.08217]
[1725656146855,0.001,52948.0,52946.0,0.08217]
[1725656147082,0.001,52948.0,52946.0,0.023]
[1725656147297,0.001,52948.0,52942.0,0.00082644]
[1725656147777,0.29906221,52974.0,52943.0,0.3951]
[1725656147992,0.55430836,52967.0,52945.0,0.3951]
[1725656148223,0.55430836,52967.0,52946.0,0.023]
[1725656148224,0.04455929,52966.0,52946.0,0.023]
[1725656148448,0.04455929,52966.0,52945.0,0.3951]
[1725656148449,0.09999013,52966.0,52945.0,0.3951]
[1725656148669,0.011,52962.0,52945.0,0.3951]
[1725656148894,0.05827063,52961.0,52945.0,0.3951]
[1725656149121,0.04455929,52960.0,52945.0,0.3951]
[1725656149334,0.04455929,52959.0,52946.0,0.74695271]
[1725656149555,0.01371134,52960.0,52947.0,0.11420527]
[1725656149774,0.01371134,52960.0,52954.0,0.188842]
[1725656149996,0.0072328,52981.0,52956.0,0.3884]
[1725656150208,0.001,52961.0,52957.0,0.00377499]
[1725656150431,0.001,52961.0,52958.0,0.023]
[1725656150665,0.001,52961.0,52959.0,0.0452925]
[1725656150871,0.001,52961.0,52960.0,0.023]
[1725656151089,0.001,52961.0,52960.0,0.02677523]
[1725656151310,0.001,52961.0,52960.0,0.023]
[1725656151530,0.001,52961.0,52960.0,0.00377565]
[1725656151747,0.001,52961.0,52960.0,0.08717652]
[1725656151969,0.32102183,52988.0,52960.0,0.08717652]
[1725656152183,0.55430836,52986.0,52961.0,0.023]
[1725656152401,0.32102183,52988.0,52961.0,0.023]
[1725656152402,0.05828609,52985.0,52961.0,0.023]
[1725656152624,0.05828609,52985.0,52956.0,0.3884]
[1725656152625,5.10828609,52984.0,52956.0,0.3884]
[1725656152842,2.43857172,52983.0,52956.0,0.3884]
[1725656153061,2.43857172,52983.0,52952.0,0.55430836]
[1725656153062,4.163,52982.0,52952.0,0.55430836]
[1725656153281,4.163,52982.0,52953.0,0.00377608]
[1725656153282,0.48328609,52981.0,52953.0,0.00377608]
[1725656153499,0.05828609,52980.0,52953.0,0.00377608]
[1725656153707,0.04457172,52979.0,52953.0,0.00377608]
[1725656153982,0.04457172,52978.0,52954.0,0.05958409]
[1725656154197,0.05628609,52977.0,52954.0,0.05958409]
[1725656154401,0.04114312,52976.0,52955.0,0.023]
[1725656154633,0.04114312,52975.0,52956.0,0.38647538]
[1725656154854,0.00081,52998.0,52957.0,0.023]
[1725656155063,0.55430836,52991.0,52958.0,0.04882838]
[1725656155298,3.26642004,52997.0,52958.0,0.04882838]
[1725656155299,0.14114334,52990.0,52964.0,0.55430836]
[1725656155515,0.14114334,52990.0,52958.0,0.05260332]
[1725656155516,0.04114334,52989.0,52965.0,0.003775]
[1725656155759,0.013,52983.0,52966.0,0.023]
[1725656155973,0.000812,52978.0,52967.0,0.19437485]
[1725656156193,0.000812,52978.0,52968.0,0.10016832]
[1725656156438,0.000812,52978.0,52969.0,0.00377464]
[1725656156647,0.000812,52978.0,52968.0,0.023]
[1725656156648,0.000812,52978.0,52970.0,0.02677475]
[1725656156874,0.000812,52978.0,52971.0,0.3812]
[1725656157107,0.000812,52978.0,52971.0,0.4042]
[1725656157348,0.001812,52978.0,52971.0,0.4042]
[1725656157555,0.001812,52978.0,52971.0,0.023]
[1725656157556,0.01371734,52977.0,52971.0,0.023]
[1725656157799,0.01371734,52977.0,52968.0,0.023]
[1725656158015,0.01371734,52977.0,52968.0,0.08308]
[1725656158236,0.01371734,52977.0,52969.0,0.00377496]
[1725656158491,0.01371734,52976.0,52970.0,0.023]
[1725656158706,0.001812,52978.0,52970.0,0.023]
[1725656158707,0.000812,52978.0,52971.0,0.00377419]
[1725656158930,0.000812,52978.0,52970.0,0.023]
[1725656158931,0.000812,52978.0,52972.0,0.023]
[1725656159156,0.000812,52978.0,52958.0,0.4091]
[1725656159157,0.0943,52977.0,52958.0,0.4091]
[1725656159370,0.0943,52977.0,52951.0,0.1976]
[1725656159371,0.0943,52977.0,52959.0,0.55430836]
[1725656159811,0.01371678,52977.0,52951.0,0.1976]
[1725656160021,0.01371678,52976.0,52958.0,0.55430836]
[1725656160235,0.1,52977.0,52959.0,0.44490593]
[1725656160236,0.01371678,52975.0,52959.0,0.44490593]
[1725656160476,0.01371678,52974.0,52970.0,0.014]
[1725656160694,0.5038,52984.0,52970.0,0.014]
[1725656160695,0.35344644,52984.0,52970.0,0.014]
[1725656160912,0.01371311,52983.0,52970.0,0.014]
[1725656161143,0.002,52982.0,52970.0,0.00578664]
[1725656161354,5.1025,52981.0,52970.0,0.00578664]
[1725656161617,5.1025,52981.0,52949.0,0.00082633]
[1725656161618,0.002,52976.0,52949.0,0.00082633]
[1725656161832,5.15288234,52980.0,52949.0,0.00082633]
[1725656161833,3.536,52975.0,52958.0,0.55430836]
[1725656162051,3.536,52975.0,52949.0,0.00082633]
[1725656162052,0.002,52970.0,52949.0,0.00082633]
[1725656162293,0.04882793,52975.0,52949.0,0.00082633]
[1725656162294,0.05404946,52965.0,52958.0,0.001]
[1725656162513,0.05404946,52965.0,52950.0,0.55430836]
[1725656162514,0.05604946,52963.0,52950.0,0.55430836]
[1725656162741,0.05604946,52963.0,52949.0,0.00082633]
[1725656162743,0.002,52959.0,52949.0,0.00082633]
[1725656162993,0.002,52959.0,52900.0,0.55430836]
[1725656162994,0.002,52959.0,52915.0,0.94990836]
[1725656162995,0.188925,52931.0,52915.0,0.94990836]
[1725656163466,0.1,52931.0,52915.0,0.94990836]
[1725656163680,0.1,52930.0,52915.0,0.94990836]
[1725656164165,0.1,52930.0,52915.0,0.3956]
[1725656164379,0.1,52930.0,52926.0,0.00146668]
[1725656164820,0.3794,52950.0,52926.0,0.00146668]
[1725656164821,0.1,52949.0,52926.0,0.00146668]
[1725656165031,0.3769,52947.0,52926.0,0.00146668]
[1725656165250,0.001,52931.0,52926.0,0.00146668]
[1725656165726,0.3769,52930.0,52926.0,6.8e-07]
[1725656165946,0.0273882,52929.0,52926.0,6.8e-07]
[1725656166193,0.0273882,52928.0,52926.0,6.8e-07]
[1725656166425,0.04450601,52928.0,52926.0,6.8e-07]
[1725656166896,0.003,52930.0,52926.0,6.8e-07]
[1725656167131,0.02739625,52927.0,52926.0,0.02208908]
[1725656167350,0.01712265,52929.0,52926.0,0.02208908]
[1725656167577,0.003,52930.0,52927.0,0.023]